{"text_format":"1","workbook":"xlsx","n_sheets":8,"sheets":["Cash 2022","Caisse 2022","Cassa 2022","Caja 2022","Kassa 2022","Kassa Test","Analyse","Val"],"not_rendered":{"charts":0,"images":0,"macros":1,"external_links":0,"defined_names":26,"comments":6,"pivot_tables":0},"unopened":[],"bounds":{"document_bytes":16777216,"sheet_cells":100000,"rows_first":2000,"rows_last":500,"rows_between":2000,"halvings":0,"cell_chars":16384,"cell_head_chars":4096},"cells_cut":0,"cells_raw":0,"read":"whole","date_system":"1900"}

{"sheet":"Cash 2022","index":0,"n_rows":18,"n_cols":19,"rows_kept":18,"cut":false,"hidden":false,"merged":[]}
[null,"Linguaggio","Info...","Analisi","Stampa","Cash 2022",0,{"$f":"SUM(H3:H18)","v":0},0,0,0,0,0,0,3394,0,0,0,0]
["Cercando","Account","Ordinare","Categoria","Nuovo foglio","Categoria","Total / Cima","Gen","Febb","Mar","Apr","Maggio","Giugno","Luglio","Agosto","Sett","Ott","Nov","Dic"]
["Data","Testo dell'account","Importo","categoria","Nuovo / Basso","Reddito*",{"$f":"SUM(H3:S3)","v":3450},0,0,0,0,0,0,0,3450,0,0,0,0]
["20.08.2022","Stipendio",3450,"Reddito*","Italiano","Formazione scolastica",{"$f":"SUM(H4:S4)","v":0},0,0,0,0,0,0,0,0,0,0,0,0]
["20.08.2022","Cibo",-56,"Cibo","It","Non alimentare",0,0,0,0,0,0,0,0,0,0,0,0,0]
[null,null,null,null,"It","Cibo",-56,0,0,0,0,0,0,0,-56,0,0,0,0]
[null,null,null,null,19,"Energia",0,0,0,0,0,0,0,0,0,0,0,0,0]
[null,null,null,null,21,"Tempo libero",0,0,0,0,0,0,0,0,0,0,0,0,0]
[null,null,null,null,null,"Investimenti",0,0,0,0,0,0,0,0,0,0,0,0,0]
[null,null,null,null,null,"Comunicazione",0,0,0,0,0,0,0,0,0,0,0,0,0]
[null,null,null,null,null,"Assistenza infermieristica",0,0,0,0,0,0,0,0,0,0,0,0,0]
[null,null,null,null,null,"Traffico",0,0,0,0,0,0,0,0,0,0,0,0,0]
[null,null,null,null,null,"Assicurazioni",0,0,0,0,0,0,0,0,0,0,0,0,0]
[null,null,null,null,null,"Donare",0,0,0,0,0,0,0,0,0,0,0,0,0]
[null,null,null,null,null,"Beni mobili",0,0,0,0,0,0,0,0,0,0,0,0,0]
[null,null,null,null,null,"Proprietà",0,0,0,0,0,0,0,0,0,0,0,0,0]
[null,null,null,null,null,"Imposta",0,0,0,0,0,0,0,0,0,0,0,0,0]
[null,null,null,null,null,"Vari",0,0,0,0,0,0,0,0,0,0,0,0,0]

{"sheet":"Caisse 2022","index":1,"n_rows":18,"n_cols":19,"rows_kept":18,"cut":false,"hidden":false,"merged":[]}
[null,"Langue","Info...","Analyse","Imprimer","Caisse 2022",0,{"$f":"SUM(H3:H18)","v":0},0,0,0,0,0,0,0,0,0,0,0]
["Recherche","Compte","Trier","Catégorie","Nouvelle feuille","Catégorie","Total / Haut","Jan","Fév.","Mar","Avr","Mai","Juin","Juillet","Août","Sept.","Oct","Nov.","Déc"]
["Date","Texte du compte","Montant","Catégorie","Nouveau / En bas","Revenu*",{"$f":"SUM(H3:S3)","v":0},0,0,0,0,0,0,0,0,0,0,0,0]
[null,null,null,null,"Francès","Éducation",{"$f":"SUM(H4:S4)","v":0},0,0,0,0,0,0,0,0,0,0,0,0]
[null,null,null,null,"Fr","Non alimentaire",0,0,0,0,0,0,0,0,0,0,0,0,0]
[null,null,null,null,"Fr","Aliments",0,0,0,0,0,0,0,0,0,0,0,0,0]
[null,null,null,null,15,"Énergie",0,0,0,0,0,0,0,0,0,0,0,0,0]
[null,null,null,null,17,"Temps Libre",0,0,0,0,0,0,0,0,0,0,0,0,0]
[null,null,null,null,null,"Investissements",0,0,0,0,0,0,0,0,0,0,0,0,0]
[null,null,null,null,null,"La communication",0,0,0,0,0,0,0,0,0,0,0,0,0]
[null,null,null,null,null,"Allaitement",0,0,0,0,0,0,0,0,0,0,0,0,0]
[null,null,null,null,null,"Trafic",0,0,0,0,0,0,0,0,0,0,0,0,0]
[null,null,null,null,null,"Assurances",0,0,0,0,0,0,0,0,0,0,0,0,0]
[null,null,null,null,null,"Faire un don",0,0,0,0,0,0,0,0,0,0,0,0,0]
[null,null,null,null,null,"Biens mobiliers",0,0,0,0,0,0,0,0,0,0,0,0,0]
[null,null,null,null,null,"Propriété",0,0,0,0,0,0,0,0,0,0,0,0,0]
[null,null,null,null,null,"Impôt",0,0,0,0,0,0,0,0,0,0,0,0,0]
[null,null,null,null,null,"Divers",0,0,0,0,0,0,0,0,0,0,0,0,0]

{"sheet":"Cassa 2022","index":2,"n_rows":18,"n_cols":19,"rows_kept":18,"cut":false,"hidden":false,"merged":[]}
[null,"Linguaggio","Info...","Analisi","Stampa","Cassa 2022",0,{"$f":"SUM(H3:H18)","v":0},0,0,0,0,0,0,0,0,0,0,0]
["Cercando","Account","Ordinare","Categoria","Nuovo foglio","Categoria","Total / Cima","Gen","Febb","Mar","Apr","Maggio","Giugno","Luglio","Agosto","Sett","Ott","Nov","Dic"]
["Data","Testo dell'account","Importo","categoria","Nuovo / Basso","Reddito*",{"$f":"SUM(H3:S3)","v":0},0,0,0,0,0,0,0,0,0,0,0,0]
[null,null,null,null,"Italiano","Formazione scolastica",{"$f":"SUM(H4:S4)","v":0},0,0,0,0,0,0,0,0,0,0,0,0]
[null,null,null,null,"It","Non alimentare",0,0,0,0,0,0,0,0,0,0,0,0,0]
[null,null,null,null,"It","Cibo",0,0,0,0,0,0,0,0,0,0,0,0,0]
[null,null,null,null,19,"Energia",0,0,0,0,0,0,0,0,0,0,0,0,0]
[null,null,null,null,21,"Tempo libero",0,0,0,0,0,0,0,0,0,0,0,0,0]
[null,null,null,null,null,"Investimenti",0,0,0,0,0,0,0,0,0,0,0,0,0]
[null,null,null,null,null,"Comunicazione",0,0,0,0,0,0,0,0,0,0,0,0,0]
[null,null,null,null,null,"Assistenza infermieristica",0,0,0,0,0,0,0,0,0,0,0,0,0]
[null,null,null,null,null,"Traffico",0,0,0,0,0,0,0,0,0,0,0,0,0]
[null,null,null,null,null,"Assicurazioni",0,0,0,0,0,0,0,0,0,0,0,0,0]
[null,null,null,null,null,"Donare",0,0,0,0,0,0,0,0,0,0,0,0,0]
[null,null,null,null,null,"Beni mobili",0,0,0,0,0,0,0,0,0,0,0,0,0]
[null,null,null,null,null,"Proprietà",0,0,0,0,0,0,0,0,0,0,0,0,0]
[null,null,null,null,null,"Imposta",0,0,0,0,0,0,0,0,0,0,0,0,0]
[null,null,null,null,null,"Vari",0,0,0,0,0,0,0,0,0,0,0,0,0]

{"sheet":"Caja 2022","index":3,"n_rows":18,"n_cols":19,"rows_kept":18,"cut":false,"hidden":false,"merged":[]}
[null,"Idioma","Info...","Análisis","a la impresora","Caja 2022",0,{"$f":"SUM(H3:H18)","v":0},0,0,0,0,0,0,0,0,0,0,0]
["Buscando","Cuenta","Ordenada","Categoría","Hoja nueva","Categoría","Total / Arriba","Ene","Feb","Mar","Abr","Mayo","Junio","Julio","Ago","Sep","Oct","Nov","Dic"]
["Fecha","Texto de la cuenta","Cantidad","categoría","Nuevo / Abajo","Ingresos*",{"$f":"SUM(H3:S3)","v":0},0,0,0,0,0,0,0,0,0,0,0,0]
[null,null,null,null,"Español","Educación",{"$f":"SUM(H4:S4)","v":0},0,0,0,0,0,0,0,0,0,0,0,0]
[null,null,null,null,"Es","Sin comida",0,0,0,0,0,0,0,0,0,0,0,0,0]
[null,null,null,null,"Es","Alimento",0,0,0,0,0,0,0,0,0,0,0,0,0]
[null,null,null,null,23,"Energía",0,0,0,0,0,0,0,0,0,0,0,0,0]
[null,null,null,null,25,"Tiempo libre",0,0,0,0,0,0,0,0,0,0,0,0,0]
[null,null,null,null,null,"Inversiones",0,0,0,0,0,0,0,0,0,0,0,0,0]
[null,null,null,null,null,"Comunicación",0,0,0,0,0,0,0,0,0,0,0,0,0]
[null,null,null,null,null,"Enfermería",0,0,0,0,0,0,0,0,0,0,0,0,0]
[null,null,null,null,null,"Tráfico",0,0,0,0,0,0,0,0,0,0,0,0,0]
[null,null,null,null,null,"Seguros",0,0,0,0,0,0,0,0,0,0,0,0,0]
[null,null,null,null,null,"Donar",0,0,0,0,0,0,0,0,0,0,0,0,0]
[null,null,null,null,null,"Bienes muebles",0,0,0,0,0,0,0,0,0,0,0,0,0]
[null,null,null,null,null,"Propiedad",0,0,0,0,0,0,0,0,0,0,0,0,0]
[null,null,null,null,null,"Impuesto",0,0,0,0,0,0,0,0,0,0,0,0,0]
[null,null,null,null,null,"Varios",0,0,0,0,0,0,0,0,0,0,0,0,0]

{"sheet":"Kassa 2022","index":4,"n_rows":18,"n_cols":19,"rows_kept":18,"cut":false,"hidden":false,"merged":[]}
[null,"Idioma","Info...","Análisis","a la impresora","Kassa 2022",0,{"$f":"SUM(H3:H18)","v":0},0,0,0,0,0,0,0,0,0,0,0]
["Buscando","Cuenta","Ordenada","Categoría","Hoja nueva","Categoría","Total / Arriba","Ene","Feb","Mar","Abr","Mayo","Junio","Julio","Ago","Sep","Oct","Nov","Dic"]
["Fecha","Texto de la cuenta","Cantidad","categoría","Nuevo / Abajo","Ingresos*",{"$f":"SUM(H3:S3)","v":0},0,0,0,0,0,0,0,0,0,0,0,0]
[null,null,null,null,"Español","Educación",{"$f":"SUM(H4:S4)","v":0},0,0,0,0,0,0,0,0,0,0,0,0]
[null,null,null,null,"Es","Sin comida",0,0,0,0,0,0,0,0,0,0,0,0,0]
[null,null,null,null,"Es","Alimento",0,0,0,0,0,0,0,0,0,0,0,0,0]
[null,null,null,null,23,"Energía",0,0,0,0,0,0,0,0,0,0,0,0,0]
[null,null,null,null,25,"Tiempo libre",0,0,0,0,0,0,0,0,0,0,0,0,0]
[null,null,null,null,null,"Inversiones",0,0,0,0,0,0,0,0,0,0,0,0,0]
[null,null,null,null,null,"Comunicación",0,0,0,0,0,0,0,0,0,0,0,0,0]
[null,null,null,null,null,"Enfermería",0,0,0,0,0,0,0,0,0,0,0,0,0]
[null,null,null,null,null,"Tráfico",0,0,0,0,0,0,0,0,0,0,0,0,0]
[null,null,null,null,null,"Seguros",0,0,0,0,0,0,0,0,0,0,0,0,0]
[null,null,null,null,null,"Donar",0,0,0,0,0,0,0,0,0,0,0,0,0]
[null,null,null,null,null,"Bienes muebles",0,0,0,0,0,0,0,0,0,0,0,0,0]
[null,null,null,null,null,"Propiedad",0,0,0,0,0,0,0,0,0,0,0,0,0]
[null,null,null,null,null,"Impuesto",0,0,0,0,0,0,0,0,0,0,0,0,0]
[null,null,null,null,null,"Varios",0,0,0,0,0,0,0,0,0,0,0,0,0]

{"sheet":"Kassa Test","index":5,"n_rows":45,"n_cols":19,"rows_kept":45,"cut":false,"hidden":false,"merged":[]}
[null,"Linguaggio","Info...","Analisi","Stampa","Kassa Test",{"$f":"SUM(G3:G18)","v":18750.500106811523},{"$f":"SUM(H3:H18)","v":0},3494.6500015258789,3454.5,2727.5999984741211,3420.7000007629395,3162.8999938964844,2902.75,1130.6000633239746,-1543.199951171875,0,0,0]
["Cercando","Account","Ordinare","Categoria","Nuovo foglio","Categoria","Total / Cima","Gen","Febb","Mar","Apr","Maggio","Giugno","Luglio","Agosto","Sett","Ott","Nov","Dic"]
["Data","Testo dell'account","Importo","categoria","Nuovo / Basso","Reddito*",{"$f":"SUM(H3:S3)","v":26209.60009765625},0,3600,3600,3550,3456,3556,3600,4847.60009765625,0,0,0,0]
["10.02.2022","Stipendio",3600,"Reddito*","Italiano","Formazione scolastica",{"$f":"SUM(H4:S4)","v":0},0,0,0,0,0,0,0,0,0,0,0,0]
["15.02.2022","Telefono",-105.34999847412109,"Comunicazione","It","Non alimentare ",0,0,0,0,0,0,0,0,0,0,0,0,0]
["01.03.2022","Stipendio",3600,"Reddito*","It","Cibo",-349.14999008178711,0,0,0,0,-35.299999237060547,0,-97.300003051757813,-216.54998779296875,0,0,0,0]
["08.03.2022","Ipoteca",-89,"Proprietà",19,"Energia",-475.84999465942383,0,0,0,0,0,-178,-259.64999389648438,-38.200000762939453,0,0,0,0]
["23.03.2022","Biglietto",-56.5,"Traffico",21,"Tempo libero",-1250.2000503540039,0,0,0,-75.400001525878906,0,0,0,-1174.800048828125,0,0,0,0]
["02.04.2022","Stipendio",3550,"Reddito*",null,"Investimenti",-500,0,0,0,0,0,0,0,-500,0,0,0,0]
["10.04.2022","Affitto",-747,"Proprietà",null,"Comunicazione",-340.09999847412109,0,-105.34999847412109,0,0,0,0,-97.300003051757813,-137.44999694824219,0,0,0,0]
["13.04.2022","Evento",-75.400001525878906,"Tempo libero",null,"Assistenza infermieristica",-1543.199951171875,0,0,0,0,0,0,0,0,-1543.199951171875,0,0,0]
["27.04.2022","Abiti / Scarpe",-342,"Non alimentare",null,"Traffico",-56.5,0,0,-56.5,0,0,0,0,0,0,0,0,0]
["06.05.2022","Stipendio",3456,"Reddito*",null,"Assicurazioni",0,0,0,0,0,0,0,0,0,0,0,0,0]
["10.05.2022","Cibo",-35.299999237060547,"Cibo",null,"Donare",0,0,0,0,0,0,0,0,0,0,0,0,0]
["13.06.2022","Affitto",-108,"Proprietà",null,"Beni mobili",0,0,0,0,0,0,0,0,0,0,0,0,0]
["14.06.2022","Stipendio",3556,"Reddito*",null,"Proprietà",-1494.1000061035156,0,0,-89,-747,0,-215.10000610351563,-243,-200,0,0,0,0]
["15.06.2022","Ipoteca",-107.09999847412109,"Proprietà",null,"Imposta",-1450,0,0,0,0,0,0,0,-1450,0,0,0,0]
["29.06.2022","Rifornimento",-178,"Energia",null,"Vari",0,0,0,0,0,0,0,0,0,0,0,0,0]
["11.07.2022","Stipendio",3600,"Reddito*"]
["13.07.2022","Una casa",-243,"Proprietà"]
["15.07.2022","Rifornimento",-259.64999389648438,"Energia"]
["20.07.2022","Cibo",-97.300003051757813,"Cibo"]
["20.07.2022","Telefono",-97.300003051757813,"Comunicazione"]
["02.08.2022","Stipendio",3200,"Reddito*"]
["03.08.2022","Cibo",-67.349998474121094,"Cibo"]
["05.08.2022","Cibo",-54.599998474121094,"Cibo"]
["05.08.2022","Affitto",-122,"Proprietà"]
["05.08.2022","Affitto",-78,"Proprietà"]
["06.08.2022","Gas",-38.200000762939453,"Energia"]
["06.08.2022","Pensione",1600,"Reddito*"]
["07.08.2022","Azioni",-500,"Investimenti"]
["10.08.2022","Evento",-1024,"Tempo libero"]
["11.08.2022","Cibo",-36,"Cibo"]
["11.08.2022","Telefono",-14,"Comunicazione"]
["11.08.2022","Abiti / Scarpe",-45,"Non alimentare"]
["13.08.2022","Cibo",-23.899999618530273,"Cibo"]
["13.08.2022","Gli sport",-75.400001525878906,"Tempo libero"]
["13.08.2022","Evento",-75.400001525878906,"Tempo libero"]
["14.08.2022","Stipendio",47.599998474121094,"Reddito*"]
["15.08.2022","Tassa comunale",-1450,"Imposta"]
["16.08.2022","Cibo",-34.700000762939453,"Cibo"]
["18.08.2022","Telefono",-123.44999694824219,"Comunicazione"]
["06.09.2022","Servizio infermieristico",-1465,"Assistenza infermieristica"]
["06.09.2022","Servizio infermieristico",-78.199996948242188,"Assistenza infermieristica"]
["06.09.2022","Articoli per la casa",-215,"Non alimentare"]

{"sheet":"Analyse","index":6,"n_rows":4,"n_cols":5,"rows_kept":4,"cut":false,"hidden":true,"merged":[]}
[null,"Kassa Test",215,"Summe"]
[]
["Datum","Kontotext","Betrag","Kategorie","Notiz"]
["06.09.2022","Haushaltartikel",-215,"Non-Food","Kaffemaschine"]

{"sheet":"Val","index":7,"n_rows":21,"n_cols":37,"rows_kept":21,"cut":false,"hidden":true,"merged":[]}
["Werte ","Datum","Date","Date","Data","fecha","Kontotext  7","Kategorie","Kategorie ","Beschreibun Kontotext 10","Kontotext en 11","categorie","categorie","Beschreibung Kegorie 14","Kontotex Fr 15","catégorie","catégorie","Beschreibung Kegorie 18","Kontotext it 19","categorie","categorie","Beschreibung Kegorie 22","Kontotext Es 23","categoría","categoría","Beschreibung Kegorie 26","Sorted Konto 27","Sorted Kat 28",29,null,31,"Total / Top","Total / Top","Total / Haut","Total / Cima","Total / Arriba",37]
["murmel","Kontotext","Account text","Texte du compte","Testo dell'account","Texto de la cuenta","Aktien","Wertanlagen","Einnahmen*","Lohn / Renten / Bonus / Nebeneinkommen / Gewinn /  Spesenentschädigung / Zinsertrag","Shares","Investments","Revenue*","Wages / pensions / bonus / additional income / profit / expense allowance / interest income","Actions","Investissements","Revenu*","Salaires / pensions / bonus / revenu complémentaire / bénéfice / indemnité de dépenses / revenus d'intérêts","Azioni","Investimenti","Reddito*","Salari / pensioni / bonus / reddito aggiuntivo / profitto / indennità di spesa / interessi attivi","Comparte","Inversiones","Ingresos*","Salarios/pensiones/bonificaciones/ingresos adicionales/ganancias/deducción de gastos/ingresos por intereses","Abiti / Scarpe","Non alimentare",null,"A house",null,"Jan","Jan","Jan","Gen","Ene"]
["E:\\AA_Excel\\AE_KassaBU\\Texte\\Bedienanl_KassaBu.pdf","Betrag","Value","Valeurs","Valori","Valores","Ereigniss","Freizeit","Ausbildung","Schule / Kurse / Studium / Bücher / Hilfsmittel","Event","Free time","Education","School / Courses / Studies / Books / Aids","Un événement","Temps Libre","Éducation","École / Cours / Études / Livres / Aides","Evento","Tempo libero","Formazione scolastica","Scuola/Corsi/Studi/Libri/Ausili","Evento","Tiempo libre","Educación","Escuela / Cursos / Estudios / Libros / Ayudas","Affitto","Proprietà",null,"Council tax",null,"Feb.","Feb.","Fév.","Febb","Feb"]
[null,"Kategorie","Category","Catégorie","Categoria","Categoría","Fahrschein","Verkehr","Nicht Nahrungsmittel","Kleider / Schuh / Haushaltartikel / Verbrauchsartikel","Ticket","Traffic","Not food","Garments / Shoe / Household Items / Consumables","Billet","Trafic","Pas de nourriture","Vêtements / Chaussures / Articles ménagers / Consommables","Biglietto","Traffico","Non alimentare ","Indumenti / scarpe / articoli per la casa / materiali di consumo","Boleto","Tráfico","No comida","Prendas / Calzado / Menaje / Consumibles","Articoli per la casa","Non alimentare",null,"Dresses / Shoes",null,"Mrz.","Mar","Mar","Mar","Mar"]
[null,null,null,null,null,null,"Gas","Energie","Essen","Getränke / Speisen / Notvorrat / Restaurant","Gas","Energy","Food","Drinks / food / emergency supplies / restaurant","Gaz","Énergie","Aliments","Boissons / nourriture / fournitures d'urgence / restaurant","Gas","Energia","Cibo","Bevande / cibo / forniture di emergenza / ristorante","Gas","Energía","Alimento","Bebidas / comida / provisiones de emergencia / restaurante","Azioni","Investimenti",null,"Event",null,"Apr","Apr","Avr","Apr","Abr"]
[null,null,null,null,null,null,"Gehalt","Einnahmen*","Energie","Strom / Solar / Gas / Oel / Treibstoffe","Salary","Revenue*","Energy","Electricity / solar / gas / oil / fuels","Un salaire","Revenu*","Énergie","Électricité / solaire / gaz / fioul / carburants","Stipendio","Reddito*","Energia","Elettricità/solare/gas/petrolio/combustibili","Salario","Ingresos*","Energía","Electricidad / solar / gas / petróleo / combustibles","Biglietto","Traffico",null,"Food",null,"Mai","May","Mai","Maggio","Mayo"]
[null,null,null,null,null,null,"Gemeindesteuer","Steuer","Freizeit","Ferien / Vereine / Sport / Taschengeld / Feste / Anlässe","Council tax","Tax","Free time","Holidays / clubs / sports / pocket money / parties / events","Taxe d'habitation","Impôt","Temps Libre","Vacances / clubs / sports / argent de poche / fêtes / événements","Tassa comunale","Imposta","Tempo libero","Vacanze / club / sport / paghetta / feste / eventi","Impuestos municipales","Impuesto","Tiempo libre","Vacaciones/clubes/deportes/dinero de bolsillo/fiestas/eventos","Cibo","Cibo",null,"Gas",null,"Juni","June","Juin","Giugno","Junio"]
[null,null,null,null,null,null,"Haus","Immobilien","Wertanlagen","Konten / Aktien / Obligationen / Wertgegenstände / Schmuck / Bilder  / Edelmetalle","A house","Property","Investments","Accounts / stocks / bonds / valuables / jewelry / pictures / precious metals","Une maison","Propriété","Investissements","Comptes / actions / obligations / objets de valeur / bijoux / images / métaux précieux","Una casa","Proprietà","Investimenti","Conti / azioni / obbligazioni / oggetti di valore / gioielli / immagini / metalli preziosi","Una casa","Propiedad","Inversiones","Cuentas / acciones / bonos / objetos de valor / joyas / cuadros / metales preciosos","Evento","Tempo libero",null,"Mortgage",null,"Juli","July","Juillet","Luglio","Julio"]
[null,null,null,null,null,null,"Haushaltartikel","Non-Food","Kommunikation","Internet / Telefon / Handy / Fernsehen / Zeitungen","Household items","Non Food","Communication","Internet / Telephone / Mobile / TV / Newspapers","Articles ménagers","Non alimentaire","La communication","Internet / Téléphone / Mobile / TV / Journaux","Articoli per la casa","Non alimentare","Comunicazione","Internet / Telefono / Cellulare / TV / Giornali","Artículos para el hogar","Sin comida","Comunicación","Internet / Teléfono / Móvil / TV / Periódicos","Gas","Energia",null,"Pension",null,"Aug.","Aug","Août","Agosto","Ago"]
[null,null,null,null,null,null,"Hypothek","Immobilien","Pflege","Art / Medizin / Kosmetik / Spital / Pflegedienste","Mortgage","Property","Nursing","Art / medicine / cosmetics / hospital / nursing services","Hypothèque","Propriété","Allaitement","Art / médecine / cosmétique / hôpital / services infirmiers","Ipoteca","Proprietà","Assistenza infermieristica","Arte/medicina/cosmesi/ospedale/servizi infermieristici","Hipoteca","Propiedad","Enfermería","Arte / medicina / cosmética / hospital / servicios de enfermería","Gli sport","Tempo libero",null,"Phone",null,"Sept.","Sept.","Sept.","Sett","Sep"]
[null,null,null,null,null,null,"Kleider / Schuhe","Non-Food","Verkehr","Auto / Bahn / Bus / Flug / Taxi / Reisespesen","Dresses / Shoes","Non Food","Traffic","Car / train / bus / flight / taxi / travel expenses","Robes / Chaussures","Non alimentaire","Trafic","Voiture / train / bus / avion / taxi / frais de déplacement","Abiti / Scarpe","Non alimentare","Traffico","Auto/treno/autobus/volo/taxi/spese di viaggio","Vestidos / Zapatos","Sin comida","Tráfico","Coche / tren / autobús / avión / taxi / gastos de viaje","Impianti","Tempo libero",null,"Refueling",null,"Okt","Oct","Oct","Ott","Oct"]
[null,null,null,null,null,null,"Lebensmittel","Essen","Versicherungen","Kranken / Auto / Gebäude / Sozialversicherung","Food","Food","Insurances","Health / Car / Building / Social Security","Aliments","Aliments","Assurances","Santé / Voiture / Bâtiment / Sécurité Sociale","Cibo","Cibo","Assicurazioni","Salute/Auto/Edilizia/Previdenza sociale","Alimento","Alimento","Seguros","Salud / Automóvil / Edificio / Seguridad Social","Ipoteca","Proprietà",null,"Rent",null,"Nov.","Nov.","Nov.","Nov","Nov"]
[null,null,null,null,null,null,"Mieten","Immobilien","Spenden","Wohltätikeit / Verein / Politik / Private","Rent","Property","Donate","charity / association / politics / private","Location","Propriété","Faire un don","caritatif / associatif / politique / privé","Affitto","Proprietà","Donare","carità / associazione / politica / privato","Renta","Propiedad","Donar","caridad / asociación / política / privado","Pensione","Reddito*",null,"Salary",null,"Dez","Dec","Déc","Dic","Dic"]
[null,null,null,null,null,null,"Pflegedienst","Pflege","Mobilien","Mobile Geräte, Maschinen, Werkzeuge, Möbel","Nursing service","Nursing","Chattels","Mobile devices, machines, tools, furniture","Service de soins infirmiers","Allaitement","Biens mobiliers","Appareils mobiles, machines, outils, meubles","Servizio infermieristico","Assistenza infermieristica","Beni mobili","Dispositivi mobili, macchine, utensili, mobili","Servicio de enfermeria","Enfermería","Bienes muebles","Dispositivos móviles, máquinas, herramientas, muebles","Rifornimento","Energia",null,"Shares"]
[null,null,null,null,null,null,"Planzen","Freizeit","Immobilien","Haus / Wohnung / Grundstücke ","Plants","Free time","Property","house / apartment / land","Végétaux","Temps Libre","Propriété","maison / appartement / terrain","Impianti","Tempo libero","Proprietà","casa  /appartamento / terreno","Plantas","Tiempo libre","Propiedad","casa / apartamento / terreno","Servizio infermieristico","Assistenza infermieristica",null,"Sports"]
[null,null,null,null,null,null,"Rente","Einnahmen*","Steuer","Bundes- / Staats- / Gemeinde- / Umweltsteuern","Pension","Revenue*","Tax","Federal / State / Local / Environmental Taxes","Pension","Revenu*","Impôt","Taxes fédérales / étatiques / locales / environnementales","Pensione","Reddito*","Imposta","Imposte federali / statali / locali / ambientali","Pensión","Ingresos*","Impuesto","Impuestos federales / estatales / locales / ambientales","Stipendio","Reddito*",null,"Ticket"]
[null,null,null,null,null,null,"Sport","Freizeit","Verschiedenes","alle übrige Ausgaben","Sports","Free time","Various","all other expenses","Des sports","Temps Libre","Divers","toutes les autres dépenses","Gli sport","Tempo libero","Vari","tutte le altre spese","Deportes","Tiempo libre","Varios","todos los demás gastos","Tassa comunale","Imposta"]
[null,null,null,null,null,null,"Tanken","Energie",null,null,"Refueling","Energy",null,null,"Ravitaillement","Énergie",null,null,"Rifornimento","Energia",null,null,"Repostaje","Energía",null,null,"Telefono","Comunicazione"]
[null,null,null,null,null,null,"Telefon","Kommunikation",null,null,"Phone","Communication",null,null,"Téléphoner","La communication",null,null,"Telefono","Comunicazione",null,null,"Teléfono","Comunicación",null,null,"Una casa","Proprietà"]
[null,null,null,null,null,null,null,null,null,null,null,null,null,null,null,null,null,null,null,null,null,null,null,null,null,null,"Vestidos / Zapatos","Sin comida"]
[null,null,null,null,null,null,null,null,"Ausbildung","Schule / Kurse / Studium / Bücher / Hilfsmittel",null,null,"Education","School / Courses / Studies / Books / Aids",null,null,"Éducation","École / Cours / Études / Livres / Aides",null,null,"Formazione scolastica","Scuola/Corsi/Studi/Libri/Ausili",null,null,"Educación","Escuela / Cursos / Estudios / Libros / Ayudas"]